{"text_format":"3","workbook":"xlsx","n_sheets":1,"sheets":["List1"],"not_rendered":{"external_links":1},"read":"whole","date_system":"1900"}

{"sheet":"List1","index":0,"n_rows":56,"n_cols":11,"rows_kept":56}
["DATUM","MÍSTO","PLEMENO","JMÉNO","ČLP","DATUM NAROZENÍ","KÓD","VÁHA","OH","POZNÁMKA","KOMISE"]
["2024-02-25","Holýšov","DRT",{"$f":"CONCATENATE(VLOOKUP(CONCATENATE(E2),[1]PK!A:C,2,0),\" \",VLOOKUP(CONCATENATE(E2),[1]PK!A:C,3,0))","v":"Ira z Krátošických strání"},"101366",{"$f":"VLOOKUP(CONCATENATE(E2),[1]PK!A:I,9,0)","v":"2020-08-13"},"1m/P1/5 - DRT",4.7,34,null,"Ing. Michaela Přibáňová,PhD. Spalová Hana"]
["2024-02-25","Holýšov","DRT",{"$f":"CONCATENATE(VLOOKUP(CONCATENATE(E3),[1]PK!A:C,2,0),\" \",VLOOKUP(CONCATENATE(E3),[1]PK!A:C,3,0))","v":"Oli z Manětínské ulice"},"103834",{"$f":"VLOOKUP(CONCATENATE(E3),[1]PK!A:I,9,0)","v":"2021-09-14"},"0a/AX2/5 - DRT",6,35,null,"Ing. Michaela Přibáňová,PhD. Spalová Hana"]
["2024-02-25","Holýšov","DRT",{"$f":"CONCATENATE(VLOOKUP(CONCATENATE(E4),[1]PK!A:C,2,0),\" \",VLOOKUP(CONCATENATE(E4),[1]PK!A:C,3,0))","v":"Point od Vévody Huberta"},"104588",{"$f":"VLOOKUP(CONCATENATE(E4),[1]PK!A:I,9,0)","v":"2022-03-16"},"0m/Z1KP1/5 - DRT",4.3,34,"chybí M3L","Ing. Michaela Přibáňová,PhD. Spalová Hana"]
["2024-02-25","Holýšov","DRT",{"$f":"CONCATENATE(VLOOKUP(CONCATENATE(E5),[1]PK!A:C,2,0),\" \",VLOOKUP(CONCATENATE(E5),[1]PK!A:C,3,0))","v":"Sagard z Dianina revíru"},"105377",{"$f":"VLOOKUP(CONCATENATE(E5),[1]PK!A:I,9,0)","v":"2022-06-16"},"0m/ALRV/5 - DRT",5.15,33,null,"Ing. Michaela Přibáňová,PhD. Spalová Hana"]
["2024-02-25","Holýšov","DRT","Čibuk Čiko ze Smrčí","105359","2022-06-03","0m/AZ1/5 - DRT",4.7,34,"chybí 2x M3","Chodilová Markéta, Bc, Brožová Petra"]
["2024-02-25","Holýšov","DRT",{"$f":"CONCATENATE(VLOOKUP(CONCATENATE(E7),[1]PK!A:C,2,0),\" \",VLOOKUP(CONCATENATE(E7),[1]PK!A:C,3,0))","v":"Olgoj Chorchoj  Vitoraz"},"105182",{"$f":"VLOOKUP(CONCATENATE(E7),[1]PK!A:I,9,0)","v":"2022-05-29"},"0m/Y2/5 - DRT",6.4,37,null,"Chodilová Markéta, Bc, Brožová Petra"]
["2024-02-25","Holýšov","DRT",{"$f":"CONCATENATE(VLOOKUP(CONCATENATE(E8),[1]PK!A:C,2,0),\" \",VLOOKUP(CONCATENATE(E8),[1]PK!A:C,3,0))","v":"Rose od Vévody Huberta"},"106145",{"$f":"VLOOKUP(CONCATENATE(E8),[1]PK!A:I,9,0)","v":"2022-11-04"},"0m/AV/5 - DRT",4.4,32,null,"Chodilová Markéta, Bc, Ing. Michaela Přibáňová, PhD. "]
["2024-02-25","Holýšov","DRT",{"$f":"CONCATENATE(VLOOKUP(CONCATENATE(E9),[1]PK!A:C,2,0),\" \",VLOOKUP(CONCATENATE(E9),[1]PK!A:C,3,0))","v":"Sibylla z Dianina revíru"},"105379",{"$f":"VLOOKUP(CONCATENATE(E9),[1]PK!A:I,9,0)","v":"2022-06-16"},"0m/NP1/5 - DRS",4.3,31,null,"Chodilová Markéta, Bc, Brožová Petra"]
["2024-02-25","Holýšov","DRT",{"$f":"CONCATENATE(VLOOKUP(CONCATENATE(E10),[1]PK!A:C,2,0),\" \",VLOOKUP(CONCATENATE(E10),[1]PK!A:C,3,0))","v":"Truly Madly Deeply  Vitoraz"},"105701",{"$f":"VLOOKUP(CONCATENATE(E10),[1]PK!A:I,9,0)","v":"2022-08-02"},"0m/ARV/5 - DRT",5.4,36,null,"Chodilová Markéta, Bc, Brožová Petra"]
["2024-02-25","Holýšov","DRT",{"$f":"CONCATENATE(VLOOKUP(CONCATENATE(E11),[1]PK!A:C,2,0),\" \",VLOOKUP(CONCATENATE(E11),[1]PK!A:C,3,0))","v":"Veni Vidi Fugi  Vitoraz"},"105951",{"$f":"VLOOKUP(CONCATENATE(E11),[1]PK!A:I,9,0)","v":"2022-09-16"},"0a/ALRV/5 - DRT",4.4,33,null,"Chodilová Markéta, Bc, Brožová Petra"]
["2024-02-25","Holýšov","DRT",{"$f":"CONCATENATE(VLOOKUP(CONCATENATE(E12),[1]PK!A:C,2,0),\" \",VLOOKUP(CONCATENATE(E12),[1]PK!A:C,3,0))","v":"Very Valentina  Vitoraz"},"105949",{"$f":"VLOOKUP(CONCATENATE(E12),[1]PK!A:I,9,0)","v":"2022-09-16"},"0a/LR/5 - DRT",4.2,32,null,"Chodilová Markéta, Bc, Brožová Petra"]
["2024-02-25","Holýšov","DRT",{"$f":"CONCATENATE(VLOOKUP(CONCATENATE(E13),[1]PK!A:C,2,0),\" \",VLOOKUP(CONCATENATE(E13),[1]PK!A:C,3,0))","v":"Xprivata Industria  Vitoraz"},"106115",{"$f":"VLOOKUP(CONCATENATE(E13),[1]PK!A:I,9,0)","v":"2022-10-28"},"0m/AV/5 - DRT",5,35,null,"Chodilová Markéta, Bc, Brožová Petra"]
["2024-02-25","Holýšov","DRK",{"$f":"CONCATENATE(VLOOKUP(CONCATENATE(E14),[1]PK!A:C,2,0),\" \",VLOOKUP(CONCATENATE(E14),[1]PK!A:C,3,0))","v":"Affy z Husitova kraje"},"106104",{"$f":"VLOOKUP(CONCATENATE(E14),[1]PK!A:I,9,0)","v":"2022-10-26"},"0m/Z1P1X1/5 - DRT",3.5,29,"chybí  2 x M3","Chodilová Markéta, Bc, Brožová Petra"]
["2024-02-25","Holýšov","DRK",{"$f":"CONCATENATE(VLOOKUP(CONCATENATE(E15),[1]PK!A:C,2,0),\" \",VLOOKUP(CONCATENATE(E15),[1]PK!A:C,3,0))","v":"Chara od Hradišťského podhradí"},"105862",{"$f":"VLOOKUP(CONCATENATE(E15),[1]PK!A:I,9,0)","v":"2022-09-12"},"0i/J/5 - DRK",5.4,30,null,"Chodilová Markéta, Bc, Brožová Petra"]
["2024-02-25","Holýšov","DRK",{"$f":"CONCATENATE(VLOOKUP(CONCATENATE(E16),[1]PK!A:C,2,0),\" \",VLOOKUP(CONCATENATE(E16),[1]PK!A:C,3,0))","v":"Cherry od Hradišťského podhradí"},"105863",{"$f":"VLOOKUP(CONCATENATE(E16),[1]PK!A:I,9,0)","v":"2022-09-12"},"1i/Z1X2P1/5 - DRK",3.8,30,null,"Chodilová Markéta, Bc, Brožová Petra"]
["2024-02-25","Holýšov","DRK",{"$f":"CONCATENATE(VLOOKUP(CONCATENATE(E17),[1]PK!A:C,2,0),\" \",VLOOKUP(CONCATENATE(E17),[1]PK!A:C,3,0))","v":"Cherryn od Hradišťského podhradí"},"105864",{"$f":"VLOOKUP(CONCATENATE(E17),[1]PK!A:I,9,0)","v":"2022-09-12"},"0i/P1NS1/5 - DRK",3.7,30,null,"Chodilová Markéta, Bc, Brožová Petra"]
["2024-02-25","Holýšov","DRK",{"$f":"CONCATENATE(VLOOKUP(CONCATENATE(E18),[1]PK!A:C,2,0),\" \",VLOOKUP(CONCATENATE(E18),[1]PK!A:C,3,0))","v":"Quaranta od Vévody Huberta"},"105374",{"$f":"VLOOKUP(CONCATENATE(E18),[1]PK!A:I,9,0)","v":"2022-06-16"},"0m/AZ1X1/5 - DRK",4,30,"chybí  2 x M3","Chodilová Markéta, Bc, Brožová Petra"]
["2024-03-30","Provodovice","DRT",{"$f":"CONCATENATE(VLOOKUP(CONCATENATE(E19),[1]PK!A:C,2,0),\" \",VLOOKUP(CONCATENATE(E19),[1]PK!A:C,3,0))","v":"Ert Maty  Bohemia Abies"},"104434",{"$f":"VLOOKUP(CONCATENATE(E19),[1]PK!A:I,9,0)","v":"2022-02-17"},"0n/AL/5 - DRT","XX","xx",null,"Bušta Jan Ing., Brožová Petra"]
["2024-03-30","Provodovice","DRT",{"$f":"CONCATENATE(VLOOKUP(CONCATENATE(E20),[1]PK!A:C,2,0),\" \",VLOOKUP(CONCATENATE(E20),[1]PK!A:C,3,0))","v":"Cara z Kačákovy samoty"},"105764",{"$f":"VLOOKUP(CONCATENATE(E20),[1]PK!A:I,9,0)","v":"2022-08-24"},"0m/LX1/5 - DRT",4.5,33,null,"Bušta Jan Ing., Brožová Petra"]
["2024-03-30","Provodovice","DRK",{"$f":"CONCATENATE(VLOOKUP(CONCATENATE(E21),[1]PK!A:C,2,0),\" \",VLOOKUP(CONCATENATE(E21),[1]PK!A:C,3,0))","v":"Bradley  Maryacell"},"104976",{"$f":"VLOOKUP(CONCATENATE(E21),[1]PK!A:I,9,0)","v":"2022-05-05"},"1m/X2/5 - DRK",3.8,32,"chybí M3LD ","Bušta Jan Ing., Brožová Petra"]
["2024-03-30","Provodovice","DRK",{"$f":"CONCATENATE(VLOOKUP(CONCATENATE(E22),[1]PK!A:C,2,0),\" \",VLOOKUP(CONCATENATE(E22),[1]PK!A:C,3,0))","v":"Raraschek  Vitoraz"},"105436",{"$f":"VLOOKUP(CONCATENATE(E22),[1]PK!A:I,9,0)","v":"2022-06-18"},"0m/ARV/5 - DRK",4.2,32,"chybí 2 x M3","Bušta Jan Ing., Brožová Petra"]
["2024-03-30","Provodovice","DRK",{"$f":"CONCATENATE(VLOOKUP(CONCATENATE(E23),[1]PK!A:C,2,0),\" \",VLOOKUP(CONCATENATE(E23),[1]PK!A:C,3,0))","v":"Z  Vitoraz"},"106279",{"$f":"VLOOKUP(CONCATENATE(E23),[1]PK!A:I,9,0)","v":"2022-12-19"},"1m/ARV/5 - DRK",3.6,30,null,"Bušta Jan Ing., Brožová Petra"]
["2024-05-11","Červený Hrádek","DRT",{"$f":"CONCATENATE(VLOOKUP(CONCATENATE(E24),[1]PK!A:C,2,0),\" \",VLOOKUP(CONCATENATE(E24),[1]PK!A:C,3,0))","v":"Candy  Kalop Bohemia"},"104013",{"$f":"VLOOKUP(CONCATENATE(E24),[1]PK!A:I,9,0)","v":"2021-10-23"},"0g/X1/5 - DRT",4.5,34,null,"Ing. Michaela Přibáňová,Ph.D., Markéta Chodilová Bc."]
["2024-05-11","Červený Hrádek","DRT",{"$f":"CONCATENATE(VLOOKUP(CONCATENATE(E25),[1]PK!A:C,2,0),\" \",VLOOKUP(CONCATENATE(E25),[1]PK!A:C,3,0))","v":"Erny ze Smilova panství"},"106341",{"$f":"VLOOKUP(CONCATENATE(E25),[1]PK!A:I,9,0)","v":"2023-01-11"},"0m/NP1/5 - DRT",5.1,33,null,"Ing. Michaela Přibáňová,Ph.D., Markéta Chodilová Bc."]
["2024-05-11","Červený Hrádek","DRK",{"$f":"CONCATENATE(VLOOKUP(CONCATENATE(E26),[1]PK!A:C,2,0),\" \",VLOOKUP(CONCATENATE(E26),[1]PK!A:C,3,0))","v":"Tanna z Dianina revíru"},"106147",{"$f":"VLOOKUP(CONCATENATE(E26),[1]PK!A:I,9,0)","v":"2022-11-10"},"0m/Z1P1/5 - DRK",3.9,30,"chybí 2x M3","Ing. Michaela Přibáňová,Ph.D., Markéta Chodilová Bc."]
["2024-06-09","Konopiště","DRT",{"$f":"CONCATENATE(VLOOKUP(CONCATENATE(E27),[1]PK!A:C,2,0),\" \",VLOOKUP(CONCATENATE(E27),[1]PK!A:C,3,0))","v":"Asafra Gretka  Pripero z Polabí"},"106308",{"$f":"VLOOKUP(CONCATENATE(E27),[1]PK!A:I,9,0)","v":"2023-01-04"},"1i/AO6P1V/5 - DRT",4,32,null,"Petra Brožová, Petr Adam"]
["2024-06-09","Konopiště","DRT",{"$f":"CONCATENATE(VLOOKUP(CONCATENATE(E28),[1]PK!A:C,2,0),\" \",VLOOKUP(CONCATENATE(E28),[1]PK!A:C,3,0))","v":"Bedřich ze Sluštic"},"106529",{"$f":"VLOOKUP(CONCATENATE(E28),[1]PK!A:I,9,0)","v":"2023-02-10"},"2n/O6P1V - DRT",6.1,36,null,"Petra Brožová, Petr Adam"]
["2024-06-09","Konopiště","DRT",{"$f":"CONCATENATE(VLOOKUP(CONCATENATE(E29),[1]PK!A:C,2,0),\" \",VLOOKUP(CONCATENATE(E29),[1]PK!A:C,3,0))","v":"Ert Maty  Bohemia Abies"},"104434",{"$f":"VLOOKUP(CONCATENATE(E29),[1]PK!A:I,9,0)","v":"2022-02-17"},"0i/AL/5 - DRT",4.8,34,"rebonitace","Petra Brožová, Petr Adam, Bc. Markéta Chodilová"]
["2024-06-09","Konopiště","DRT",{"$f":"CONCATENATE(VLOOKUP(CONCATENATE(E30),[1]PK!A:C,2,0),\" \",VLOOKUP(CONCATENATE(E30),[1]PK!A:C,3,0))","v":"Galaxy  Gold Vargo"},"106319",{"$f":"VLOOKUP(CONCATENATE(E30),[1]PK!A:I,9,0)","v":"2023-01-07"},"0m/5 - DRT",5.3,35,null,"MVDr. Katka Sviták Novozámská, Ing. Michaela Přibáňová"]
["2024-06-09","Konopiště","DRT",{"$f":"CONCATENATE(VLOOKUP(CONCATENATE(E31),[1]PK!A:C,2,0),\" \",VLOOKUP(CONCATENATE(E31),[1]PK!A:C,3,0))","v":"Vega Vivaldina  Czech Originál"},"106561",{"$f":"VLOOKUP(CONCATENATE(E31),[1]PK!A:I,9,0)","v":"2023-02-16"},"0m/AP1/5 - DRT",4.7,33,null,"Petra Brožová, Petr Adam"]
["2024-06-09","Konopiště","DRK",{"$f":"CONCATENATE(VLOOKUP(CONCATENATE(E32),[1]PK!A:C,2,0),\" \",VLOOKUP(CONCATENATE(E32),[1]PK!A:C,3,0))","v":"Hope Enigma  Piccolo Gitano"},"106059",{"$f":"VLOOKUP(CONCATENATE(E32),[1]PK!A:I,9,0)","v":"2022-10-18"},"0n/AV/5 - DRK",4.5,30,null,"MVDr. Katka Sviták Novozámská, Ing. Michaela Přibáňová"]
["2024-06-09","Konopiště","DRK",{"$f":"CONCATENATE(VLOOKUP(CONCATENATE(E33),[1]PK!A:C,2,0),\" \",VLOOKUP(CONCATENATE(E33),[1]PK!A:C,3,0))","v":"Veni Vidi Fugi  Vitoraz"},"105951",{"$f":"VLOOKUP(CONCATENATE(E33),[1]PK!A:I,9,0)","v":"2022-09-16"},"0a/ALRV/5 - DRK",4.4,30,"rebonitace","MVDr. Katka Sviták Novozámská, Bc. Markéta Chodilová"]
["2024-06-15","Náměšť na Hané","DRT",{"$f":"CONCATENATE(VLOOKUP(CONCATENATE(E34),[1]PK!A:C,2,0),\" \",VLOOKUP(CONCATENATE(E34),[1]PK!A:C,3,0))","v":"Caspián  Navero"},"106283",{"$f":"VLOOKUP(CONCATENATE(E34),[1]PK!A:I,9,0)","v":"2023-01-01"},"0m/S1/5 - DRT",4.9,34,null,"Mgr. Lenka Burešová, Petra Brožová"]
["2024-06-15","Náměšť na Hané","DRT",{"$f":"CONCATENATE(VLOOKUP(CONCATENATE(E35),[1]PK!A:C,2,0),\" \",VLOOKUP(CONCATENATE(E35),[1]PK!A:C,3,0))","v":"Dorotka z Lipové pohádky"},"106410",{"$f":"VLOOKUP(CONCATENATE(E35),[1]PK!A:I,9,0)","v":"2023-01-11"},"0a/Z1P3/5 - DRT",4.4,32,"chybí 1x M3","Mgr. Lenka Burešová, Petra Brožová"]
["2024-06-15","Náměšť na Hané","DRT",{"$f":"CONCATENATE(VLOOKUP(CONCATENATE(E36),[1]PK!A:C,2,0),\" \",VLOOKUP(CONCATENATE(E36),[1]PK!A:C,3,0))","v":"Jully od Skotnických drsňáků"},"105874",{"$f":"VLOOKUP(CONCATENATE(E36),[1]PK!A:I,9,0)","v":"2022-09-04"},"2m/S2/5 - DRT",4.4,32,null,"Mgr. Lenka Burešová, Petra Brožová"]
["2024-06-15","Náměšť na Hané","DRK",{"$f":"CONCATENATE(VLOOKUP(CONCATENATE(E37),[1]PK!A:C,2,0),\" \",VLOOKUP(CONCATENATE(E37),[1]PK!A:C,3,0))","v":"Dáda z Lipové pohádky"},"106406",{"$f":"VLOOKUP(CONCATENATE(E37),[1]PK!A:I,9,0)","v":"2023-01-11"},"0m/X1/5 - DRK",4,30,null,"Mgr. Lenka Burešová, Petra Brožová"]
["2024-06-15","Náměšť na Hané","DRK",{"$f":"CONCATENATE(VLOOKUP(CONCATENATE(E38),[1]PK!A:C,2,0),\" \",VLOOKUP(CONCATENATE(E38),[1]PK!A:C,3,0))","v":"Zoja z Lopenických kopců"},"106637",{"$f":"VLOOKUP(CONCATENATE(E38),[1]PK!A:I,9,0)","v":"2023-03-06"},"0m/O6/5 - DRK",3.5,28,null,"Mgr. Lenka Burešová, Petra Brožová"]
["2024-07-13","Netolice","DRT",{"$f":"CONCATENATE(VLOOKUP(CONCATENATE(E39),[1]PK!A:C,2,0),\" \",VLOOKUP(CONCATENATE(E39),[1]PK!A:C,3,0))","v":"Donna Summer  Vitoraz"},"106798",{"$f":"VLOOKUP(CONCATENATE(E39),[1]PK!A:I,9,0)","v":"2023-03-26"},"2o/5 - DRT",5.4,34,null,"Dana Hájková, Robert Kubeš"]
["2024-07-13","Netolice","DRT",{"$f":"CONCATENATE(VLOOKUP(CONCATENATE(E40),[1]PK!A:C,2,0),\" \",VLOOKUP(CONCATENATE(E40),[1]PK!A:C,3,0))","v":"Gucci  Gold Vargo"},"106318",{"$f":"VLOOKUP(CONCATENATE(E40),[1]PK!A:I,9,0)","v":"2023-01-07"},"1m/O6/5 - DRT",4,33,null,"Ing. Jan Bušta, Robert Kubeš"]
["2024-07-13","Netolice","DRK",{"$f":"CONCATENATE(VLOOKUP(CONCATENATE(E41),[1]PK!A:C,2,0),\" \",VLOOKUP(CONCATENATE(E41),[1]PK!A:C,3,0))","v":"Agnus Dei  Vitoraz"},"106689",{"$f":"VLOOKUP(CONCATENATE(E41),[1]PK!A:I,9,0)","v":"2023-02-24"},"1a/R/5 - DRK",3.5,29,null,"Dana Hájková, Robert Kubeš"]
["2024-07-13","Netolice","DRK",{"$f":"CONCATENATE(VLOOKUP(CONCATENATE(E42),[1]PK!A:C,2,0),\" \",VLOOKUP(CONCATENATE(E42),[1]PK!A:C,3,0))","v":"Atomic Sex Bomb  Vitoraz"},"106690",{"$f":"VLOOKUP(CONCATENATE(E42),[1]PK!A:I,9,0)","v":"2023-02-24"},"1m/AZ1L/5 - DRK",3.9,30,"chybí 2x M3","Dana Hájková, Robert Kubeš"]
["2024-07-13","Netolice","DRK",{"$f":"CONCATENATE(VLOOKUP(CONCATENATE(E43),[1]PK!A:C,2,0),\" \",VLOOKUP(CONCATENATE(E43),[1]PK!A:C,3,0))","v":"Daddy Steady Go!  Vitoraz"},"106797",{"$f":"VLOOKUP(CONCATENATE(E43),[1]PK!A:I,9,0)","v":"2023-03-26"},"1m/5 - DRK",4.3,32,null,"Dana Hájková, Robert Kubeš"]
["2024-07-13","Netolice","DRK",{"$f":"CONCATENATE(VLOOKUP(CONCATENATE(E44),[1]PK!A:C,2,0),\" \",VLOOKUP(CONCATENATE(E44),[1]PK!A:C,3,0))","v":"Laida Maida  Kalokagathia"},"105948",{"$f":"VLOOKUP(CONCATENATE(E44),[1]PK!A:I,9,0)","v":"2022-09-22"},"0m/Z1/5 - DRK",3.2,27,"chybí 2x M3","Ing. Jan Bušta, Robert Kubeš"]
["2024-08-24","Jevíčko","DRT",{"$f":"CONCATENATE(VLOOKUP(CONCATENATE(E45),[1]PK!A:C,2,0),\" \",VLOOKUP(CONCATENATE(E45),[1]PK!A:C,3,0))","v":"Isolda z Moravského břehu"},"107185",{"$f":"VLOOKUP(CONCATENATE(E45),[1]PK!A:I,9,0)","v":"2023-05-19"},"0m/A/5 - DRT",4.8,33,null,"Ing. Michaela Přibáňová, Bc. Markéta Chodilová"]
["2024-09-28","Starý Plzenec","DRT",{"$f":"CONCATENATE(VLOOKUP(CONCATENATE(E46),[1]PK!A:C,2,0),\" \",VLOOKUP(CONCATENATE(E46),[1]PK!A:C,3,0))","v":"Cid  Kalop Bohemia"},"104010",{"$f":"VLOOKUP(CONCATENATE(E46),[1]PK!A:I,9,0)","v":"2021-10-23"},"0a/Z1O1P1X2/5 - DRT",5.5,37,"chybí M3 L","Ing. Anna Krejzková, Mgr. Lenka Burešová"]
["2024-09-28","Starý Plzenec","DRT",{"$f":"CONCATENATE(VLOOKUP(CONCATENATE(E47),[1]PK!A:C,2,0),\" \",VLOOKUP(CONCATENATE(E47),[1]PK!A:C,3,0))","v":"Ecce Homo  Vitoraz"},"107218",{"$f":"VLOOKUP(CONCATENATE(E47),[1]PK!A:I,9,0)","v":"2023-05-26"},"0b/LR/5 - DRT",5.2,35,null,"Ing. Anna Krejzková, Mgr. Lenka Burešová"]
["2024-10-05","Praha","DRT",{"$f":"CONCATENATE(VLOOKUP(CONCATENATE(E48),[1]PK!A:C,2,0),\" \",VLOOKUP(CONCATENATE(E48),[1]PK!A:C,3,0))","v":"Carlos z Žilkova dvora"},"106873",{"$f":"VLOOKUP(CONCATENATE(E48),[1]PK!A:I,9,0)","v":"2023-04-14"},"1m/L/5 - DRT",5.4,36,null,"Hana Spalová, MVDr. Katka Sviták Novozámská"]
["2024-10-05","Praha","DRT",{"$f":"CONCATENATE(VLOOKUP(CONCATENATE(E49),[1]PK!A:C,2,0),\" \",VLOOKUP(CONCATENATE(E49),[1]PK!A:C,3,0))","v":"Cora z Kozomínských strání"},"106804",{"$f":"VLOOKUP(CONCATENATE(E49),[1]PK!A:I,9,0)","v":"2023-04-07"},"0n/5 - DRT",4.6,35,null,"Hana Spalová, MVDr. Katka Sviták Novozámská"]
["2024-10-05","Praha","DRT",{"$f":"CONCATENATE(VLOOKUP(CONCATENATE(E50),[1]PK!A:C,2,0),\" \",VLOOKUP(CONCATENATE(E50),[1]PK!A:C,3,0))","v":"Čibuk Čiko ze Smrčí"},"105359",{"$f":"VLOOKUP(CONCATENATE(E50),[1]PK!A:I,9,0)","v":"2022-06-03"},"0m/A/5 - DRT",4.7,34,"rebonitace plnochrupý","Hana Spalová, MVDr. Katka Sviták Novozámská"]
["2024-10-28","Provodovice","DRT",{"$f":"CONCATENATE(VLOOKUP(CONCATENATE(E51),[1]PK!A:C,2,0),\" \",VLOOKUP(CONCATENATE(E51),[1]PK!A:C,3,0))","v":"Daisy z Louček u Oder"},"107194",{"$f":"VLOOKUP(CONCATENATE(E51),[1]PK!A:I,9,0)","v":"2023-05-10"},"1m/V/5 - DRT",5,35,null,"Petra Brožová, MUDr. Petra Mozíková"]
["2024-10-28","Provodovice","DRT",{"$f":"CONCATENATE(VLOOKUP(CONCATENATE(E52),[1]PK!A:C,2,0),\" \",VLOOKUP(CONCATENATE(E52),[1]PK!A:C,3,0))","v":"Festina Lente  Vitoraz"},"107391",{"$f":"VLOOKUP(CONCATENATE(E52),[1]PK!A:I,9,0)","v":"2023-06-07"},"0m/ALRV/5 - DRT",4.3,33,null,"Petra Brožová, MUDr. Petra Mozíková"]
["2024-10-28","Provodovice","DRT",{"$f":"CONCATENATE(VLOOKUP(CONCATENATE(E53),[1]PK!A:C,2,0),\" \",VLOOKUP(CONCATENATE(E53),[1]PK!A:C,3,0))","v":"Ronia Mottl z Kudrnovy"},"107512",{"$f":"VLOOKUP(CONCATENATE(E53),[1]PK!A:I,9,0)","v":"2023-06-27"},"0i/AP1V/5 - DRT",4.3,34,null,"Petra Brožová, MUDr. Petra Mozíková"]
["2024-10-28","Provodovice","DRK",{"$f":"CONCATENATE(VLOOKUP(CONCATENATE(E54),[1]PK!A:C,2,0),\" \",VLOOKUP(CONCATENATE(E54),[1]PK!A:C,3,0))","v":"Brick Eliash  Adelville"},"106105",{"$f":"VLOOKUP(CONCATENATE(E54),[1]PK!A:I,9,0)","v":"2022-10-25"},"0n/ALRV/5 - DRK",3.9,32,null,"Petra Brožová, MUDr. Petra Mozíková"]
["2024-10-28","Provodovice","DRK",{"$f":"CONCATENATE(VLOOKUP(CONCATENATE(E55),[1]PK!A:C,2,0),\" \",VLOOKUP(CONCATENATE(E55),[1]PK!A:C,3,0))","v":"Wabi z Lopenických kopců"},"106532",{"$f":"VLOOKUP(CONCATENATE(E55),[1]PK!A:I,9,0)","v":"2023-02-16"},"1m/5 - DRK",3.8,29,null,"Petra Brožová, MUDr. Petra Mozíková"]
["2024-10-28","Provodovice","DRK",{"$f":"CONCATENATE(VLOOKUP(CONCATENATE(E56),[1]PK!A:C,2,0),\" \",VLOOKUP(CONCATENATE(E56),[1]PK!A:C,3,0))","v":"Zino z Lopenických kopců"},"106634",{"$f":"VLOOKUP(CONCATENATE(E56),[1]PK!A:I,9,0)","v":"2023-03-06"},"0n/O6P1V/5 - DRK",3.4,31,null,"Petra Brožová, MUDr. Petra Mozíková"]